bitfinex/quotes_ETHUSD_20240902
["timestamp","ask_amount","ask_price","bid_price","bid_amount"]
[1725311483101,6.12806,2557.5,2557.4,0.06909631]
[1725311483294,6.12806,2557.5,2557.0,3.12864]
[1725311483622,3.0,2557.5,2557.0,3.12864]
[1725311483818,3.0,2557.5,2557.1,0.06939044]
[1725311484374,3.0,2557.5,2557.1,3.19791044]
[1725311485211,3.0,2557.5,2557.2,3.12837]
[1725311485524,3.12776,2557.8,2557.3,0.06916054]
[1725311485525,6.12781,2557.7,2557.3,0.06916054]
[1725311485678,7.053367,2557.7,2557.3,0.06916054]
[1725311485881,3.925557,2557.7,2557.1,3.12852]
[1725311486120,3.0,2557.7,2557.4,0.06882604]
[1725311486281,3.0,2557.7,2557.3,3.12828]
[1725311486482,6.12781,2557.7,2557.5,0.06872801]
[1725311486683,6.12781,2557.7,2557.4,0.06882604]
[1725311486885,6.12781,2557.7,2557.6,0.06862999]
[1725311487402,6.740591,2557.7,2557.2,3.12842]
[1725311487586,6.740591,2557.7,2557.3,0.06892407]
[1725311487777,6.740591,2557.7,2557.2,3.12842]
[1725311487981,6.740591,2557.7,2557.3,0.06892407]
[1725311488181,6.740591,2557.7,2557.2,3.12842]
[1725311488428,3.0,2557.7,2557.3,3.19719407]
[1725311491129,3.1277,2557.8,2557.3,3.19719407]
[1725311491350,3.0,2557.7,2557.3,3.19719407]
[1725311492983,6.7973,2558.7,2557.5,4.13403814]
[1725311493195,3.12653,2558.8,2558.1,7.26133814]
[1725311493542,6.7973,2558.9,2558.2,0.14617723]
[1725311493692,6.7973,2558.9,2558.3,3.12699]
[1725311494087,9.92364,2558.9,2558.4,0.06757032]
[1725311494330,3.12656,2558.8,2558.4,0.06757032]
[1725311494701,3.12683,2558.5,2557.9,3.1275]
[1725311495061,6.25356,2558.6,2557.9,3.1275]
[1725311495341,3.80627,2558.8,2558.2,3.12717]
[1725311495567,3.12654,2558.8,2558.2,3.12717]
[1725311495737,3.12654,2558.8,2558.3,0.06766828]
[1725311496609,6.7973,2558.9,2558.3,0.06766828]
[1725311496812,3.0,2558.8,2558.3,0.06766828]
[1725311498561,3.0,2558.8,2558.3,1.11327792]
[1725311499055,3.0,2558.8,2558.3,0.06766828]
[1725311499420,3.0,2558.8,2558.3,3.19472828]
[1725311500463,3.0,2558.9,2558.3,3.19472828]
[1725311501157,3.0,2558.9,2558.3,6.32171828]
[1725311501468,3.0,2558.9,2558.3,3.19465828]
[1725311501612,7.731367,2558.9,2558.3,3.19463828]
[1725311501950,7.731367,2558.9,2558.3,6.32163828]
[1725311502315,7.731367,2558.9,2558.4,3.12694]
[1725311502664,4.604987,2558.9,2558.5,0.06618431]
[1725311502959,1.604987,2558.9,2558.5,0.06618431]
[1725311503338,1.604987,2558.9,2558.5,3.19299431]
[1725311503533,3.0,2559.0,2558.7,4.13403814]
[1725311503775,9.92308,2559.4,2558.8,3.12637]
[1725311503776,3.0,2559.3,2558.8,3.12637]
[1725311503985,4.292308,2559.3,2558.9,3.12633]
[1725311504330,4.292308,2559.3,2559.0,0.06547539]
[1725311504879,4.292308,2559.3,2558.8,3.12637]
[1725311505092,4.292308,2559.3,2559.1,0.06537748]
[1725311505240,4.292308,2559.3,2558.8,3.12637]
[1725311505432,3.0,2559.3,2558.9,3.1918133]
[1725311505888,9.75203,2559.6,2558.9,3.1918133]
[1725311506091,4.100873,2559.5,2558.9,3.1918133]
[1725311506374,3.12574,2559.4,2558.9,3.1918133]
[1725311506581,6.25153,2559.4,2558.9,0.0655733]
[1725311506875,3.12586,2559.3,2558.9,0.0655733]
[1725311508056,3.12586,2559.3,2558.7,10.38704814]
[1725311508389,3.12586,2559.3,2558.8,0.06567122]
[1725311511203,3.12634,2558.9,2558.8,0.06567122]
[1725311511553,3.12634,2558.9,2558.4,6.4146]
[1725311511748,3.12634,2558.9,2558.8,0.06554194]
[1725311512054,3.12634,2558.9,2558.8,0.06562625]
[1725311512247,3.12634,2558.9,2558.4,9.54154]
[1725311512450,3.12618,2559.1,2558.5,7.3267782]
[1725311512652,6.25236,2559.1,2558.5,7.3267782]
[1725311512893,3.0,2559.3,2558.5,4.1999582]
[1725311512894,3.12643,2558.9,2558.5,4.1999582]
[1725311513794,3.12643,2558.9,2558.5,7.3267782]
[1725311514307,3.12643,2558.9,2558.5,4.1999582]
[1725311515013,3.12643,2558.9,2558.5,0.06592006]
[1725311515213,12.9691,2558.6,2558.5,0.06592006]
[1725311515391,3.12711,2558.3,2557.7,9.6554]
[1725311515597,3.12766,2557.9,2557.4,6.5276]
[1725311515787,3.12766,2557.9,2557.3,4.13403814]
[1725311515788,3.12785,2557.7,2557.3,4.13403814]
[1725311515971,3.12766,2557.9,2557.0,4.13403814]
[1725311515972,3.12808,2557.5,2557.0,4.13403814]
[1725311516555,3.12826,2557.4,2557.0,4.13403814]
[1725311516760,3.12808,2557.5,2557.0,4.13403814]
[1725311517258,3.12818,2557.4,2557.0,4.13403814]
[1725311517477,3.12831,2557.3,2556.7,4.13403814]
[1725311517696,3.12854,2557.1,2556.7,4.13403814]
[1725311518961,3.12879,2556.9,2556.5,6.5276]
[1725311519761,3.12879,2556.9,2556.4,4.13403814]
[1725311519762,3.12913,2556.7,2556.4,4.13403814]
[1725311519958,3.12913,2556.7,2556.2,6.5276]
[1725311519959,3.12925,2556.6,2555.9,9.65758]
[1725311520196,3.12913,2556.7,2556.0,7.26391814]
[1725311520358,3.1288,2556.9,2556.3,4.13403814]
[1725311520555,3.1288,2556.9,2556.3,10.66163814]
[1725311520809,3.12913,2556.7,2556.3,10.66163814]
[1725311520970,3.12913,2556.7,2556.3,4.13403814]
[1725311521172,3.12925,2556.6,2556.3,4.13403814]
[1725311521926,3.12938,2556.5,2556.0,4.13403814]
[1725311522257,3.12938,2556.5,2555.7,4.13403814]
[1725311522456,3.12938,2556.5,2555.9,3.13]
[1725311522763,3.1294,2556.4,2555.8,4.50931281]
[1725311523177,0.625838,2556.6,2556.0,7.26390814]
[1725311523407,6.7157,2556.6,2555.7,3.13023]
[1725311523563,3.12952,2556.3,2555.7,3.13023]
[1725311523777,3.0,2556.2,2555.8,3.13011]
[1725311523999,6.12936,2556.5,2555.8,3.13011]
[1725311524309,9.84454,2556.9,2556.1,3.12964]
[1725311524456,6.12898,2556.8,2556.1,3.12964]
[1725311524885,3.12905,2556.7,2556.1,3.12964]
[1725311525084,4.726409,2556.7,2556.1,3.12964]
[1725311525508,3.12805,2557.5,2556.9,3.12876]
[1725311526006,3.12757,2557.9,2557.2,3.12834]
[1725311526173,3.12735,2558.1,2557.4,3.12813]
[1725311526374,3.12735,2558.1,2557.4,3.448763]
[1725311526375,3.12745,2558.0,2557.4,3.448763]
[1725311526584,6.8453,2558.3,2557.1,10.45653814]
[1725311526768,3.12777,2557.8,2557.1,13.58501814]
[1725311526964,3.12777,2557.8,2557.1,15.28766455]
[1725311527404,3.12766,2557.9,2557.2,3.12841]
[1725311527622,3.12734,2558.1,2557.4,3.12817]
[1725311527903,4.437316,2558.1,2557.2,3.12833]
[1725311528088,3.12756,2557.9,2557.2,3.12833]
[1725311528291,4.437316,2558.1,2557.3,3.12829]
[1725311528468,3.12766,2557.9,2557.2,3.12833]
[1725311528669,3.12776,2557.8,2557.1,15.28772455]
[1725311528870,3.12766,2557.9,2557.1,15.28772455]
[1725311529066,3.12788,2557.7,2557.1,10.45653814]
[1725311529303,3.12806,2557.5,2556.9,3.12877]
[1725311529467,3.12793,2557.6,2556.9,3.12877]
[1725311529905,0.612788,2557.7,2557.0,3.12865]
[1725311530091,3.0,2557.7,2557.0,3.12865]
[1725311530294,6.12781,2557.7,2557.0,3.12865]
[1725311530478,3.12805,2557.5,2556.8,7.26288814]
[1725311530899,6.2562,2557.5,2556.8,7.26288814]
[1725311531083,3.0,2557.7,2557.1,3.12854]
[1725311531297,3.0,2557.7,2557.1,3.754257]
[1725311531502,3.0,2557.7,2557.1,3.12854]
[1725311532320,6.12782,2557.7,2557.1,3.12854]
[1725311532611,3.0,2557.7,2557.2,3.12838]
[1725311532807,3.0,2557.7,2557.2,3.18731677]
[1725311533395,3.0,2557.7,2557.2,0.05893677]
[1725311533799,3.0,2557.7,2557.2,3.18734677]
[1725311533967,3.0,2557.7,2557.2,0.05893677]
[1725311534332,3.612778,2557.7,2557.2,0.05893677]
[1725311534471,6.740688,2557.7,2557.0,3.12865]
[1725311534672,6.740688,2557.7,2557.1,0.05908385]
[1725311534871,3.12795,2557.6,2557.1,0.05908385]
[1725311535240,6.823,2558.5,2557.4,4.13403814]
[1725311535377,3.1272,2558.2,2557.5,3.54138381]
[1725311535713,3.1275,2558.0,2557.5,0.05856305]
[1725311536896,3.1275,2558.0,2555.9,0.79601242]
[1725311536897,3.13013,2555.9,2555.1,9.90411]
[1725311537076,3.13033,2555.7,2555.1,9.90411]
[1725311537284,3.13033,2555.7,2555.1,6.7732]
[1725311540981,3.0,2555.8,2555.2,3.13079]
[1725311541439,3.0,2555.8,2555.3,3.13074]
[1725311541800,9.5758,2556.4,2555.4,3.13055]
[1725311541801,3.12958,2556.3,2555.4,3.13055]
[1725311542175,3.0,2556.2,2555.4,3.13055]
[1725311542443,6.25967,2556.1,2555.4,3.13055]
[1725311542591,3.0,2556.0,2555.4,3.13055]
[1725311543303,3.0,2556.0,2555.4,3.13054]
[1725311543488,3.0,2556.0,2555.4,3.13053]
[1725311544239,6.1299,2556.0,2555.4,3.13053]
[1725311544395,3.0,2556.0,2555.4,3.13053]
[1725311545161,3.0,2556.0,2555.4,3.8870103]
[1725311545308,4.055767,2556.1,2555.4,6.26107]
[1725311545703,4.055767,2556.1,2555.5,3.1305]
[1725311546034,4.055767,2556.1,2555.5,3.13048]
[1725311546621,4.055767,2556.1,2555.4,3.13053]
[1725311546947,3.4055767,2556.0,2555.4,3.13053]
[1725311547327,3.4055767,2556.0,2555.4,6.26107]
[1725311547506,3.4055767,2556.0,2555.5,3.1305]
[1725311547707,3.0,2556.0,2555.6,3.13036]
[1725311547906,3.0,2556.2,2555.6,3.13036]
[1725311548209,0.612958,2556.1,2555.6,3.13036]
[1725311552291,0.612958,2556.1,2555.6,3.1303]
[1725311552567,0.612958,2556.1,2555.6,3.13029]
[1725311552924,0.612958,2556.1,2555.7,3.13024]
[1725311553522,0.612958,2556.1,2555.6,3.13029]
[1725311553724,0.3612958,2556.0,2555.5,3.13043]
[1725311554268,0.3612958,2556.0,2555.6,3.13035]
[1725311554475,3.742808,2556.1,2555.6,3.13035]
[1725311556465,0.612958,2556.1,2555.6,3.13035]
[1725311556634,3.0,2556.2,2555.8,3.13003]
[1725311556840,6.12956,2556.3,2555.8,3.13003]
[1725311557045,1.570537,2556.2,2555.8,3.13003]
[1725311559067,3.0,2556.3,2555.8,6.26009]
[1725311559281,3.0,2556.3,2555.8,3.13003]
[1725311560086,6.12952,2556.3,2555.8,3.13003]
[1725311561867,3.0,2556.3,2555.8,3.13003]
[1725311562670,6.12955,2556.3,2555.6,10.074]
[1725311562883,4.055602,2556.2,2555.7,3.13018]
[1725311563380,0.925892,2556.2,2555.7,3.13018]
[1725311563651,0.925892,2556.2,2555.8,3.13012]
[1725311563807,3.0,2556.3,2555.8,3.13012]
[1725311564004,6.12953,2556.3,2555.8,3.13012]
[1725311564171,3.0,2556.3,2555.6,10.07396]
[1725311564382,6.12956,2556.3,2555.7,3.13017]
[1725311564573,6.56272469,2556.3,2555.7,3.13017]
[1725311565469,3.12964,2556.2,2555.7,3.13017]
[1725311565792,3.12964,2556.2,2555.6,13.20427]
[1725311566179,3.12964,2556.2,2555.7,3.13024]
[1725311567086,10.66055547,2556.2,2555.5,3.13048]
[1725311567296,3.12995,2556.0,2555.5,3.13048]
[1725311567688,3.12995,2556.0,2555.6,3.13037]
[1725311568020,10.66055547,2556.2,2555.6,3.13037]
[1725311568725,1.36605555,2556.1,2555.4,3.1305]
[1725311568921,3.12995,2556.0,2555.4,6.26105]
[1725311569266,3.12995,2556.0,2555.5,3.13044]
[1725311571064,3.13008,2555.9,2555.4,3.1305]
[1725311571730,4.54868356,2556.0,2555.4,3.1305]
[1725311572028,7.67864356,2556.0,2555.4,6.26106]
[1725311572899,4.54868356,2556.0,2555.4,6.26106]
[1725311573094,7.67864356,2556.0,2555.4,6.26106]
[1725311573689,4.54868356,2556.0,2555.4,6.26106]
[1725311574183,7.67866356,2556.0,2555.4,3.1305]
[1725311574405,3.89789636,2555.9,2555.4,3.1305]
[1725311574769,0.76786636,2555.9,2555.4,6.26104]
[1725311574990,7.67866356,2556.0,2555.4,3.1305]
[1725311575186,3.13008,2555.9,2555.4,6.26105]
[1725311575411,7.67867356,2556.0,2555.4,6.26105]
[1725311575714,7.67867356,2556.0,2555.4,3.1305]
[1725311576100,7.67867356,2556.0,2555.4,6.26106]
[1725311576298,4.54868356,2556.0,2555.4,3.1305]
[1725311576469,7.67867356,2556.0,2555.4,6.26105]
[1725311576970,7.67867356,2556.0,2555.4,3.1305]
[1725311577786,3.13005,2555.9,2555.4,3.1305]
[1725311578226,3.13059,2555.5,2555.2,7.28]
[1725311578390,3.1305,2555.5,2554.9,7.28]
[1725311578592,3.13069,2555.4,2554.9,7.28]
[1725311579008,9.69777,2555.3,2554.9,7.28]
[1725311579316,3.13094,2555.2,2555.0,0.08551333]
[1725311579477,4.400734,2555.2,2555.0,0.08551333]
[1725311580121,1.269794,2555.2,2555.0,0.08551333]
[1725311580419,9.69675,2556.2,2555.5,3.13042]
[1725311580622,3.12986,2556.1,2555.5,9.93822]
[1725311580771,9.69675,2556.2,2555.5,12.38691174]
[1725311581174,9.69673,2556.2,2555.5,12.38691174]
[1725311581615,3.12989,2556.0,2555.5,9.25649174]
[1725311581826,6.567,2556.2,2555.3,7.28]
[1725311581827,3.13021,2555.8,2555.3,7.28]
[1725311582001,3.13025,2555.7,2555.3,7.28]
[1725311582202,3.13038,2555.6,2555.3,7.28]
[1725311582414,3.13038,2555.6,2555.1,3.13088]
[1725311582729,3.443231,2555.8,2555.2,3.13086]
[1725311584127,6.25991,2556.0,2555.4,3.13058]
[1725311584290,3.13005,2555.9,2555.4,3.13058]
[1725311584494,3.13014,2555.8,2555.0,10.8034]
[1725311584807,3.13038,2555.7,2555.0,10.88891333]
[1725311585005,3.13038,2555.7,2555.1,3.13098]
[1725311585822,9.55475,2555.7,2555.0,10.80348]
[1725311586030,10.510225,2555.7,2555.0,10.80348]
[1725311586331,4.085825,2555.7,2555.0,10.87677714]
[1725311586534,3.13005,2555.9,2555.2,3.13084]
[1725311586748,3.13005,2555.9,2555.4,6.3505]
[1725311586749,3.0,2555.8,2555.4,6.3505]
[1725311587428,3.613005,2555.8,2555.4,6.3505]
[1725311587626,3.613005,2555.8,2555.3,3.13066]
[1725311587932,10.241905,2555.8,2555.1,10.48866739]
[1725311588134,3.13047,2555.6,2555.1,10.48866739]
[1725311588318,3.13047,2555.6,2555.1,4.13816739]
[1725311588521,3.13047,2555.6,2555.1,7.26914739]
[1725311589238,3.13047,2555.6,2555.2,0.07316567]
[1725311589395,7.8499,2555.6,2555.2,0.07316567]
[1725311589590,4.71943,2555.6,2555.2,0.07316567]
[1725311590097,3.13047,2555.6,2555.2,0.07316567]
[1725311590494,3.13046,2555.6,2555.2,0.07316567]
[1725311590729,15.8893,2555.8,2555.2,3.20401567]
[1725311591412,12.75909,2555.8,2555.2,3.20401567]
[1725311591591,4.588905,2555.8,2555.4,3.13056]
[1725311591795,6.13002,2555.9,2555.3,3.13068]
[1725311592042,6.13002,2555.9,2555.3,3.13067]
[1725311593343,7.741478,2555.9,2555.3,3.13067]
[1725311594296,3.0,2555.9,2555.5,3.13049]
[1725311594493,3.0,2556.0,2555.5,3.13049]
[1725311594696,6.12989,2556.0,2555.5,3.13049]
[1725311595897,6.12989,2556.0,2555.3,12.86214]
[1725311596222,3.13002,2555.9,2555.3,9.73146]
[1725311596535,3.13002,2555.9,2555.3,12.8621]
[1725311596757,3.13002,2555.9,2555.1,7.26905739]
[1725311596758,3.13028,2555.7,2555.1,7.26905739]
[1725311596897,3.13039,2555.6,2555.1,3.13089]
[1725311597098,3.13039,2555.6,2555.2,0.08535995]
[1725311597343,4.1174899,2555.8,2555.2,0.08535995]
[1725311597570,4.1174899,2555.8,2555.0,17.40421]
[1725311597732,4.1174899,2555.8,2555.2,0.08535995]
[1725311597926,3.13051,2555.5,2555.0,10.80341]
[1725311598187,3.13051,2555.5,2555.1,0.08560547]
[1725311598694,3.13046,2555.6,2555.1,3.21659547]
[1725311599128,3.13071,2555.4,2555.1,0.08560547]
[1725311600270,3.13075,2555.3,2555.1,0.08560547]
[1725311600676,3.13087,2555.2,2555.1,0.08560547]
[1725311600883,4.08023627,2555.2,2555.1,0.08560547]
[1725311601028,6.26174,2555.2,2555.1,0.08560547]
[1725311601428,6.26174,2555.2,2555.1,0.0642041]
[1725311603784,9.39261,2555.2,2555.1,0.0642041]
[1725311604084,3.13148,2554.7,2554.6,0.00732461]
[1725311605293,6.26296,2554.7,2554.6,0.00732461]
[1725311605577,21.104678,2554.7,2554.6,0.00732461]
[1725311605796,19.42694,2554.7,2554.6,0.00732461]
[1725311606485,21.564674,2554.7,2554.6,0.00732461]
[1725311606778,18.433194,2554.7,2554.6,0.00732461]
[1725311606954,20.5896404,2554.7,2554.6,0.00732461]
[1725311607285,18.4519064,2554.7,2554.6,0.00732461]
[1725311607799,0.53796175,2555.4,2554.8,3.13134]
[1725311608089,9.94658,2556.0,2555.3,7.26890739]
[1725311608252,3.13001,2555.9,2555.3,7.26890739]
[1725311608455,6.31690001,2556.0,2555.3,4.13816739]
[1725311608456,9.44682001,2556.0,2555.3,4.13816739]
[1725311608829,9.44682001,2556.0,2555.4,1.44508679]
[1725311608988,3.13002,2555.9,2555.4,0.06041505]
[1725311609135,6.31690001,2556.0,2555.0,7.26927739]
[1725311609136,3.13027,2555.7,2555.0,7.26927739]
[1725311609333,3.13027,2555.7,2555.1,1.38469774]
[1725311609693,3.13027,2555.7,2555.1,4.57585093]
[1725311610492,10.39156101,2556.0,2555.2,3.13085]
[1725311610493,9.31690001,2556.0,2555.2,3.13085]
[1725311610709,9.31690001,2556.0,2555.3,0.46539974]
[1725311610710,3.0,2555.9,2555.3,0.46539974]
[1725311610987,6.13002,2555.9,2555.3,0.52473955]
[1725311611763,3.13015,2555.8,2555.3,0.52473955]
[1725311611962,3.13015,2555.8,2555.3,0.05933981]
[1725311612166,3.13015,2555.8,2555.1,4.51567774]
[1725311612365,3.13015,2555.8,2555.2,0.05948471]
[1725311613120,3.13015,2555.8,2555.2,3.19031471]
[1725311613401,6.13003,2555.9,2555.3,4.13816739]
[1725311613751,3.0,2555.9,2555.4,0.05912926]
[1725311615067,3.0,2555.9,2555.4,3.18973926]
[1725311615395,3.0,2555.9,2555.4,4.25144518]
[1725311617279,6.13002,2555.9,2555.4,1.12083518]
[1725311617483,3.0,2555.9,2555.4,1.12083518]
[1725311617960,3.0,2555.9,2555.4,4.25144518]
[1725311618757,3.0,2555.9,2555.4,7.38199518]
[1725311618957,3.0,2555.9,2555.4,4.25138518]
[1725311619457,3.0,2555.9,2555.6,3.13037]
[1725311619793,3.0,2556.1,2555.7,0.0745478]
[1725311620206,6.12977,2556.1,2555.7,0.0745478]
[1725311620754,3.1299,2556.0,2555.7,0.0745478]
[1725311621062,3.0,2555.9,2555.5,3.13049]
[1725311621285,3.0,2555.9,2555.6,0.07464962]
[1725311625301,6.2605,2555.7,2555.6,0.07464962]
[1725311625601,23.721421,2555.7,2555.6,0.07464962]
[1725311625805,3.13072,2555.4,2554.8,3.13128]
[1725311625960,3.13075,2555.3,2554.8,3.13128]
[1725311626295,3.13075,2555.3,2554.9,0.05929086]
[1725311626815,3.13075,2555.3,2555.0,0.05912716]
[1725311627099,3.13075,2555.3,2554.8,3.13133]
[1725311627269,5.0685167,2555.5,2555.1,0.05896347]
[1725311627637,3.50685167,2555.4,2555.2,0.0587998]
[1725311627929,6.13044,2555.6,2555.1,3.13099]
[1725311628114,6.13044,2555.6,2555.3,0.05863614]
[1725311628280,6.13044,2555.6,2555.2,0.0587998]
[1725311629818,6.13044,2555.6,2555.3,0.05863614]
[1725311630029,7.829964,2555.6,2555.1,3.13098]
[1725311630226,7.829964,2555.6,2555.2,0.0587998]
[1725311630883,4.9999764,2555.5,2555.2,0.0587998]
[1725311631084,3.0,2555.4,2554.9,9.97273]
[1725311631354,3.0,2555.4,2555.0,0.05954933]
[1725311631545,3.13087,2555.2,2555.0,0.05954933]
[1725311631736,3.0,2555.4,2555.0,0.05954933]
[1725311631882,3.1305,2555.5,2554.9,3.13114]
[1725311632086,3.0,2555.4,2555.0,0.05954933]
[1725311632288,6.13071,2555.4,2555.0,0.05954933]
[1725311632603,3.13077,2555.3,2555.0,0.05954933]
[1725311632801,3.13077,2555.3,2554.8,7.26952739]
[1725311633017,3.13077,2555.3,2554.9,0.05971303]
[1725311633337,7.224562,2555.3,2554.9,0.05971303]
[1725311633486,4.093702,2555.3,2554.9,0.05971303]
[1725311634035,4.093702,2555.3,2554.9,3.19088303]
[1725311634036,0.962932,2555.3,2554.9,3.19088303]
[1725311634534,12.64522,2555.4,2554.9,3.19088303]
[1725311635024,3.0,2555.4,2554.9,3.19088303]
[1725311636077,3.0,2555.4,2554.9,6.32205303]
[1725311636415,3.0,2555.4,2554.9,3.19088303]
[1725311637516,6.13068,2555.4,2554.9,3.19088303]
[1725311639268,7.093609,2555.4,2554.9,3.19088303]
[1725311640024,3.962929,2555.4,2554.9,3.19088303]
[1725311640224,10.19494,2555.7,2554.9,3.19086303]
[1725311640225,6.13039,2555.6,2554.9,3.19086303]
[1725311640959,3.1305,2555.5,2555.0,3.1311]
[1725311641136,3.0,2555.4,2555.0,3.1311]
[1725311641320,3.0,2555.4,2555.1,0.05950764]
[1725311642221,3.0,2555.4,2554.9,3.13121]
[1725311642421,3.0,2555.4,2555.0,0.05967133]
[1725311642680,3.0,2555.4,2555.0,3.19078133]
[1725311642894,3.0,2555.4,2555.0,0.05967133]
[1725311643039,3.74657599,2555.4,2554.8,7.26941739]
[1725311643243,3.74657599,2555.4,2554.9,0.05983503]
[1725311643584,3.13076,2555.3,2554.9,0.05983503]
[1725311644139,3.74657599,2555.4,2554.9,0.05983503]
[1725311644341,6.13063,2555.4,2554.9,0.05983503]
[1725311645164,3.13074,2555.3,2554.9,0.05983503]
[1725311645388,3.0,2555.4,2554.9,0.05983503]
[1725311645679,6.13065,2555.4,2554.9,3.19104503]
[1725311647485,7.2200191,2555.4,2554.9,3.19104503]
[1725311648196,7.2200191,2555.4,2554.9,0.05983503]
[1725311649497,3.13077,2555.3,2554.9,0.05983503]
[1725311649798,3.13101,2555.1,2554.6,0.00732461]
[1725311650004,3.13101,2555.1,2555.0,0.05967133]
[1725311650152,3.13101,2555.1,2554.6,0.00732461]
[1725311650153,3.13111,2555.0,2554.6,0.00732461]
[1725311650357,4.666248,2555.0,2554.6,0.00732461]
[1725311650806,3.13136,2554.8,2554.6,0.00732461]
[1725311650962,3.13136,2554.8,2554.6,0.00599214]
[1725311651163,4.666248,2555.0,2554.6,0.00599214]
[1725311651707,7.797468,2555.0,2554.6,0.00599214]
[1725311651903,0.7797468,2554.9,2554.6,0.00599214]
[1725311652103,3.9110268,2554.9,2554.6,0.00599214]
[1725311652904,3.9110268,2554.9,2554.7,0.06029385]
[1725311656708,3.0,2555.1,2554.9,3.13123]
[1725311656878,3.13058,2555.5,2555.0,0.06079738]
[1725311657068,3.13071,2555.4,2555.0,0.06079738]
[1725311657512,3.13087,2555.2,2555.0,0.06079738]
[1725311657725,3.13087,2555.2,2554.8,6.2535]
[1725311657884,3.13087,2555.2,2555.1,0.06050228]
[1725311658081,3.13087,2555.2,2554.8,6.2535]
[1725311658303,3.13087,2555.2,2554.9,0.06082967]
[1725311658624,6.26162,2555.3,2554.9,0.06082967]
[1725311658795,6.874696,2555.3,2554.9,0.06082967]
[1725311659323,3.13088,2555.2,2554.9,0.06082967]
[1725311659681,3.13111,2555.0,2554.9,0.06082967]
[1725311659903,3.13111,2555.0,2554.6,0.00599214]
[1725311660080,0.313111,2554.9,2554.6,0.00599214]
[1725311660687,9.575711,2554.9,2554.6,0.00599214]
[1725311660887,3.13148,2554.7,2554.6,0.00599214]
[1725311661816,9.26296,2554.7,2554.6,0.00599214]
[1725311662128,15.92796,2554.7,2554.6,0.00599214]
[1725311663297,19.05944,2554.7,2554.6,0.00599214]
[1725311663503,18.14703,2554.7,2554.6,0.00599214]
[1725311665225,3.13087,2555.2,2554.6,4.14843851]
[1725311665531,6.2634,2555.6,2555.0,4.14244637]
[1725311665691,3.13087,2555.2,2554.7,10.33214637]
[1725311665887,3.13114,2555.0,2554.7,10.33214637]
[1725311666630,6.26184,2555.2,2554.7,10.33214637]
[1725311666933,3.0,2555.1,2554.7,10.33214637]
[1725311667487,3.0,2555.1,2554.8,3.13127]
[1725311667724,3.13067,2555.4,2554.8,3.19220707]
[1725311667929,3.13067,2555.4,2554.8,0.06093707]
[1725311668515,3.13044,2555.6,2554.9,3.13116]
[1725311668719,3.13044,2555.6,2554.9,3.19184889]
[1725311668892,3.13044,2555.6,2554.9,6.32298889]
[1725311669091,3.0,2555.5,2554.9,3.19182889]
[1725311669317,3.0,2555.5,2554.9,5.04058956]
[1725311670032,3.13062,2555.4,2554.9,5.04058956]
[1725311670335,3.13062,2555.4,2554.9,3.19182889]
[1725311670529,3.0,2555.3,2554.9,3.19182889]
[1725311671140,3.0,2555.5,2554.9,3.19182889]
[1725311671433,6.13054,2555.5,2554.9,3.19182889]
[1725311672236,3.13066,2555.4,2554.9,3.19182889]
[1725311672419,3.0,2555.3,2554.9,3.19182889]
[1725311672631,3.0,2555.3,2555.0,3.13111]
[1725311672850,6.26089,2555.6,2555.1,6.75608642]
[1725311672851,3.0,2555.5,2555.1,6.75608642]
[1725311673028,3.0,2555.5,2555.1,9.88700642]
[1725311673363,3.0,2555.5,2555.1,11.77354375]
[1725311674020,3.0,2555.5,2555.1,8.64262375]
[1725311674860,6.1305,2555.5,2555.1,6.75608642]
[1725311675157,6.1305,2555.5,2555.1,0.06028642]
[1725311675158,3.13081,2555.3,2555.1,0.06028642]
[1725311675457,3.13081,2555.3,2554.8,9.82715]
[1725311675628,3.13081,2555.3,2554.9,0.06785267]
[1725311678150,3.0,2555.5,2554.9,0.06785267]
[1725311678367,12.77362,2555.0,2554.9,0.06785267]
[1725311678663,12.77362,2555.0,2554.6,0.00599214]
[1725311678664,6.26296,2554.7,2554.6,0.00599214]
[1725311678869,6.26296,2554.7,2554.6,0.06689064]
[1725311679189,9.26296,2554.7,2554.6,0.06689064]
[1725311683272,6.13148,2554.7,2554.6,0.06689064]
[1725311683857,3.0,2554.7,2554.6,0.06689064]
[1725311684465,6.13148,2554.7,2554.6,0.06689064]
[1725311684655,10.3482864,2554.7,2554.6,0.06689064]
[1725311684856,7.2168064,2554.7,2554.6,0.06689064]
[1725311686493,10.3482864,2554.7,2554.6,0.06689064]
[1725311686651,7.2168064,2554.7,2554.6,0.06689064]
[1725311689844,4.0853264,2554.7,2554.6,0.06689064]
[1725311690366,3.0,2554.7,2554.6,0.06689064]
[1725311690950,3.13148,2554.7,2554.6,0.06689064]
[1725311691141,6.13148,2554.7,2554.6,0.06689064]
[1725311691787,9.26296,2554.7,2554.6,0.06689064]
[1725311694457,9.81296,2554.7,2554.6,0.06689064]
[1725311694754,10.794256,2554.7,2554.6,0.06689064]
[1725311696595,3.0,2554.7,2554.6,0.06689064]
[1725311696798,6.693,2555.3,2554.7,3.1314]
[1725311696799,3.13082,2555.3,2554.7,3.1314]
[1725311697007,3.12959,2556.3,2554.6,6.54729064]
[1725311697008,3.13026,2555.7,2555.0,10.62284637]
[1725311697309,3.13047,2555.6,2555.0,10.62284637]
[1725311697488,3.13052,2555.5,2555.0,10.62284637]
[1725311698056,6.26114,2555.5,2555.0,10.62284637]
[1725311698371,3.13052,2555.5,2555.0,11.99826601]
[1725311699823,3.13082,2555.3,2555.0,4.14244637]
[1725311700118,3.13082,2555.3,2554.7,21.59162543]
[1725311701594,3.13082,2555.3,2554.7,14.31162543]
[1725311701797,3.0,2555.7,2554.7,14.31162543]
[1725311701798,6.1303,2555.7,2555.1,3.1309]
[1725311702134,6.1303,2555.7,2555.0,4.14244637]
[1725311702135,6.13046,2555.6,2555.0,4.14244637]